[Event "IM Marmaris Karia VIII 2019"]
[Site "Marmaris"]
[Date "2019.07.28"]
[Round "4.5"]
[White "Sibashvili, Giorgi"]
[Black "Caputcuoglu, Zeki Berke"]
[Result "1-0"]
[ECO "E69"]
[WhiteElo "2389"]
[BlackElo "2010"]
[Annotator "NA"]
[PlyCount "71"]
[EventDate "2019.07.29"]
[EventType "schev"]
[EventCountry "TUR"]
[SourceTitle "playchess.com"]
[Source "ChessBase"]
[SourceQuality "1"]
[TimeControl "5400+30"]

1. d4 {[%emt 0:07:30]} Nf6 {[%emt 0:00:30]} 2. c4 {[%emt 0:04:30]} g6 {[%emt 0:00:30]} 3. Nf3 {[%emt 0:00:00]} Bg7 {[%emt 0:00:00]} 4. g3 {[%emt 0:00:00]} O-O {[%emt 0:00:00]} 5. Bg2 {[%emt 0:00:00]} d6 {[%emt 0:00:30]} 6. O-O {[%emt 0:00:00]} c6 {[%emt 0:00:30]} 7. Nc3 {[%emt 0:01:30]} Qa5 {[%emt 0:00:30]} 8. h3 {[%emt 0:01:30]} e5 {[%emt 0:00:00]} 9. e4 {[%emt 0:00:30]} Nbd7 {[%emt 0:00:00]} 10. Be3 {[%emt 0:01:30]} exd4 {[%emt 0:01:30]} 11. Nxd4 {[%emt 0:00:30]} Nb6 {[%emt 0:01:30]} 12. Nb3 {[%emt 0:06:30]} Qh5 {[%emt 0:01:30]} 13. Qxh5 {[%emt 0:04:30]} Nxh5 {[%emt 0:00:30]} 14. Na5 {[%emt 0:00:30]} Be6 {[%emt 0:03:30]} 15. c5 {[%emt 0:01:30]} Nc4 {[%emt 0:06:30]} 16. Nxc4 {[%emt 0:00:30]} Bxc4 {[%emt 0:00:00]} 17. Rfd1 {[%emt 0:00:30]} dxc5 {[%emt 0:00:00]} 18. g4 {[%emt 0:00:30]} Nf6 {[%emt 0:00:30]} 19. Bxc5 {[%emt 0:00:00]} Rfd8 {[%emt 0:00:30]} 20. f4 {[%emt 0:06:00]} Ne8 {[%emt 0:10:30]} 21. Be7 {[%emt 0:08:30]} Rd4 {[%emt 0:16:30]} 22. Kf2 {[%emt 0:17:30]} Nc7 {[%emt 0:11:30]} 23. Ke3 {[%emt 0:05:30]} Rxd1 {[%emt 0:02:30]} 24. Rxd1 {[%emt 0:02:30]} Bxc3 {[%emt 0:00:30]} 25. bxc3 {[%emt 0:00:00]} Bxa2 {[%emt 0:00:30]} 26. Rd7 {[%emt 0:01:00]} Rc8 {[%emt 0:00:00]} 27. f5 {[%emt 0:03:30]} b6 {[%emt 0:13:00]} 28. Bf1 {[%emt 0:02:30]} a5 {[%emt 0:13:52]} 29. Bd8 {[%emt 0:02:30]} Nb5 {[%emt 0:00:22]} 30. Bxb6 {[%emt 0:01:30]} a4 {[%emt 0:00:35]} 31. c4 {[%emt 0:02:30]} Na3 {[%emt 0:00:43]} 32. Kd4 {[%emt 0:00:30]} Bb3 {[%emt 0:02:39]} 33. Kc3 {[%emt 0:00:30]} Ra8 {[%emt 0:01:53]} 34. Bd3 {[%emt 0:00:56]} Rb8 {[%emt 0:02:12]} 35. Ba7 {[%emt 0:01:24]} Ra8 {[%emt 0:01:15]} 36. Bc5 {[%emt 0:00:37]} 1-0

[Event "IM Marmaris Karia VIII 2019"]
[Site "Marmaris"]
[Date "2019.07.28"]
[Round "5.1"]
[White "Dedebas, Emre Emin"]
[Black "Rzayev, Bahruz"]
[Result "0-1"]
[ECO "A43"]
[WhiteElo "2301"]
[BlackElo "2340"]
[Annotator "NA"]
[PlyCount "138"]
[EventDate "2019.07.29"]
[EventType "schev"]
[EventCountry "TUR"]
[SourceTitle "playchess.com"]
[Source "ChessBase"]
[SourceQuality "1"]
[TimeControl "5400+30"]

1. d4 {[%emt 0:01:30]} Nf6 {[%emt 0:00:30]} 2. Nf3 {[%emt 0:00:00]} c5 {[%emt 0:00:30]} 3. d5 {[%emt 0:00:00]} b5 {[%emt 0:00:00]} 4. Bg5 {[%emt 0:00:30]} Qb6 {[%emt 0:00:00]} 5. e3 {[%emt 0:00:00]} Bb7 {[%emt 0:00:00]} 6. Nc3 {[%emt 0:02:00]} b4 {[%emt 0:01:00]} 7. Na4 {[%emt 0:00:30]} Qa5 {[%emt 0:00:30]} 8. Bxf6 {[%emt 0:00:30]} exf6 {[%emt 0:08:30]} 9. c3 {[%emt 0:00:00]} d6 {[%emt 0:01:30]} 10. Be2 {[%emt 0:12:00]} Be7 {[%emt 0:06:30]} 11. O-O {[%emt 0:00:30]} f5 {[%emt 0:03:30]} 12. Qb3 {[%emt 0:12:30]} O-O {[%emt 0:06:30]} 13. a3 {[%emt 0:03:30]} Rc8 {[%emt 0:07:30]} 14. axb4 {[%emt 0:07:30]} cxb4 {[%emt 0:00:30]} 15. Rfd1 {[%emt 0:00:00]} Na6 {[%emt 0:02:30]} 16. Bxa6 {[%emt 0:14:00]} Bxa6 {[%emt 0:00:00]} 17. cxb4 {[%emt 0:00:30]} Qb5 {[%emt 0:04:00]} 18. Nd4 {[%emt 0:06:30]} Qc4 {[%emt 0:00:30]} 19. Qxc4 {[%emt 0:06:30]} Bxc4 {[%emt 0:00:30]} 20. Nxf5 {[%emt 0:06:30]} Bf8 {[%emt 0:00:00]} 21. Nc3 {[%emt 0:05:30]} Rab8 {[%emt 0:00:00]} 22. Ne4 {[%emt 0:03:47]} Bb3 {[%emt 0:03:30]} 23. Rd4 {[%emt 0:02:45]} Rc4 {[%emt 0:04:30]} 24. Nd2 {[%emt 0:14:25]} Rxd4 {[%emt 0:00:30]} 25. Nxd4 {[%emt 0:00:30]} Bxd5 {[%emt 0:01:30]} 26. b5 {[%emt 0:00:30]} Rb7 {[%emt 0:00:00]} 27. f3 {[%emt 0:00:04]} g6 {[%emt 0:01:00]} 28. Ra5 {[%emt 0:00:39]} Be6 {[%emt 0:02:30]} 29. Ne4 {[%emt 0:00:32]} d5 {[%emt 0:00:30]} 30. Nc3 {[%emt 0:00:43]} Bb4 {[%emt 0:00:30]} 31. Ra6 {[%emt 0:00:42]} Bc5 {[%emt 0:01:30]} 32. Rc6 {[%emt 0:00:28]} Bb6 {[%emt 0:00:00]} 33. Kf2 {[%emt 0:00:45]} Bd7 {[%emt 0:00:00]} 34. Rd6 {[%emt 0:00:08]} Bxd4 {[%emt 0:00:30]} 35. exd4 {[%emt 0:00:36]} Bxb5 {[%emt 0:00:00]} 36. Nxd5 {[%emt 0:00:43]} Bc4 {[%emt 0:00:00]} 37. Ne3 {[%emt 0:00:00]} Rxb2+ {[%emt 0:00:30]} 38. Kg3 {[%emt 0:00:38]} Bb5 {[%emt 0:02:30]} 39. Rd8+ {[%emt 0:00:30]} Kg7 {[%emt 0:00:30]} 40. Rb8 {[%emt 0:00:30]} a6 {[%emt 0:00:30]} 41. h4 {[%emt 0:00:00]} Rd2 {[%emt 0:00:30]} 42. d5 {[%emt 0:00:24]} Rd4 {[%emt 0:00:30]} 43. Rb6 {[%emt 0:00:42]} h5 {[%emt 0:02:30]} 44. f4 {[%emt 0:00:36]} Bd3 {[%emt 0:00:30]} 45. Rb7 {[%emt 0:00:41]} a5 {[%emt 0:00:30]} 46. Ra7 {[%emt 0:00:45]} a4 {[%emt 0:00:30]} 47. Ra5 {[%emt 0:00:32]} Be4 {[%emt 0:00:30]} 48. f5 {[%emt 0:00:15]} gxf5 {[%emt 0:01:30]} 49. Ra6 {[%emt 0:00:14]} Bd3 {[%emt 0:00:30]} 50. Ra5 {[%emt 0:00:39]} Kg6 {[%emt 0:01:30]} 51. Kf3 {[%emt 0:00:35]} f6 {[%emt 0:00:30]} 52. g3 {[%emt 0:00:25]} Bb1 {[%emt 0:02:30]} 53. Ke2 {[%emt 0:00:36]} Be4 {[%emt 0:01:30]} 54. Ra7 {[%emt 0:00:29]} Rb4 {[%emt 0:01:30]} 55. Kd2 {[%emt 0:00:36]} Rb2+ {[%emt 0:00:30]} 56. Ke1 {[%emt 0:00:27]} Bf3 {[%emt 0:02:30]} 57. Kf1 {[%emt 0:00:27]} Be2+ {[%emt 0:00:00]} 58. Kf2 {[%emt 0:00:29]} Bb5+ {[%emt 0:02:00]} 59. Kg1 {[%emt 0:00:41]} Rb3 {[%emt 0:00:30]} 60. Kf2 {[%emt 0:00:11]} a3 {[%emt 0:00:30]} 61. Ng2 {[%emt 0:00:20]} Rb2+ {[%emt 0:01:30]} 62. Kf3 {[%emt 0:00:05]} a2 {[%emt 0:00:30]} 63. Nf4+ {[%emt 0:00:06]} Kh6 {[%emt 0:00:30]} 64. d6 {[%emt 0:00:28]} Bc4 {[%emt 0:00:30]} 65. Ke3 {[%emt 0:01:46]} Rb6 {[%emt 0:00:00]} 66. d7 {[%emt 0:00:35]} Rd6 {[%emt 0:00:00]} 67. Ne2 {[%emt 0:00:42]} Rxd7 {[%emt 0:00:00]} 68. Ra4 {[%emt 0:00:07]} Re7+ {[%emt 0:00:00]} 69. Kd4 {[%emt 0:00:08]} Rxe2 {[%emt 0:00:30]} 0-1

[Event "IM Marmaris Karia VIII 2019"]
[Site "Marmaris"]
[Date "2019.07.28"]
[Round "5.2"]
[White "Abdulla, Khayala"]
[Black "Maghalashvili, Davit"]
[Result "0-1"]
[ECO "B22"]
[WhiteElo "2283"]
[BlackElo "2485"]
[Annotator "ChessBase"]
[PlyCount "102"]
[EventDate "2019.07.29"]
[EventType "schev"]
[EventCountry "TUR"]
[SourceTitle "playchess.com"]
[Source "ChessBase"]
[SourceQuality "1"]
[TimeControl "5400+30"]

1. e4 {[%emt 0:00:30]} c5 {[%emt 0:00:30]} 2. c3 {[%emt 0:00:00]} Nf6 {[%emt 0:00:00]} 3. e5 {[%emt 0:00:00]} Nd5 {[%emt 0:00:00]} 4. Nf3 {[%emt 0:00:30]} Nc6 {[%emt 0:00:30]} 5. Bc4 {[%emt 0:00:00]} Nb6 {[%emt 0:01:30]} 6. Bb3 {[%emt 0:04:00]} d5 {[%emt 0:00:00]} 7. exd6 {[%emt 0:00:00]} Qxd6 {[%emt 0:01:00]} 8. Na3 {[%emt 0:00:00]} a6 {[%emt 0:01:30]} 9. O-O {[%emt 0:05:30]} Bf5 {[%emt 0:09:30]} 10. Bxf7+ {[%emt 0:24:30]} Kxf7 {[%emt 0:00:30]} 11. Qb3+ {[%emt 0:00:30]} Nd5 {[%emt 0:00:30]} 12. Nc4 {[%emt 0:02:30]} Qd8 {[%emt 0:01:30]} 13. Qxb7 {[%emt 0:04:30]} Rc8 {[%emt 0:01:30]} 14. g4 {[%emt 0:03:30]} Bd7 {[%emt 0:07:30]} 15. Nfe5+ {[%emt 0:07:30]} Ke8 {[%emt 0:03:30]} 16. Re1 {[%emt 0:00:00]} e6 {[%emt 0:02:30]} 17. d3 {[%emt 0:05:00]} Nxe5 {[%emt 0:03:30]} 18. Rxe5 {[%emt 0:04:30]} Be7 {[%emt 0:00:30]} 19. Bg5 {[%emt 0:04:30]} Bxg5 {[%emt 0:00:00]} 20. Qxd5 {[%emt 0:08:30]} Be7 {[%emt 0:15:00]} 21. Qf3 {[%emt 0:04:33]} Rf8 {[%emt 0:06:30]} 22. Qh3 {[%emt 0:00:46]} Kf7 {[%emt 0:01:30]} 23. Qxh7 {[%emt 0:02:57]} Rh8 {[%emt 0:00:00]} 24. Qe4 {[%emt 0:06:05]} Bf6 {[%emt 0:03:00]} 25. Nd6+ {[%emt 0:01:11]} Kf8 {[%emt 0:10:30]} 26. Nxc8 {[%emt 0:00:34]} Bxe5 {[%emt 0:00:30]} 27. Qxe5 {[%emt 0:00:13]} Qxc8 {[%emt 0:00:30]} 28. Re1 {[%emt 0:00:15]} Qc6 {[%emt 0:02:30]} 29. Re4 {[%emt 0:01:12]} Rh3 {[%emt 0:01:30]} 30. d4 {[%emt 0:02:56]} Rd3 {[%emt 0:03:30]} 31. Rf4+ {[%emt 0:02:51]} Kg8 {[%emt 0:00:30]} 32. Qe2 {[%emt 0:00:56]} Qb5 {[%emt 0:00:30]} 33. Qc2 {[%emt 0:01:34]} c4 {[%emt 0:01:30]} 34. h4 {[%emt 0:03:31]} Qd5 {[%emt 0:01:30]} 35. Qe2 {[%emt 0:00:36]} Rh3 {[%emt 0:00:30]} 36. f3 {[%emt 0:00:27]} Rxh4 {[%emt 0:01:30]} 37. Re4 {[%emt 0:00:55]} Qg5 {[%emt 0:00:00]} 38. Qf2 {[%emt 0:00:44]} Qh6 {[%emt 0:01:00]} 39. Qg3 {[%emt 0:00:14]} Rh1+ {[%emt 0:00:30]} 40. Kg2 {[%emt 0:00:31]} Qc1 {[%emt 0:00:30]} 41. Qf2 {[%emt 0:00:19]} Bc6 {[%emt 0:00:30]} 42. Re3 {[%emt 0:00:57]} Bd5 {[%emt 0:00:30]} 43. a3 {[%emt 0:00:37]} g5 {[%emt 0:01:30]} 44. Kg3 {[%emt 0:00:28]} Rf1 {[%emt 0:00:30]} 45. Qe2 {[%emt 0:00:26]} Rg1+ {[%emt 0:00:30]} 46. Kf2 {[%emt 0:00:35]} Rh1 {[%emt 0:00:00]} 47. Kg3 {[%emt 0:00:13]} Rg1+ {[%emt 0:01:00]} 48. Kf2 {[%emt 0:00:16]} Rd1 {[%emt 0:00:30]} 49. Kg3 {[%emt 0:00:42]} Rd2 {[%emt 0:00:00]} 50. Qe1 {[%emt 0:00:17]} Qxe1+ {[%emt 0:00:00]} 51. Rxe1 {[%emt 0:00:02]} Kg7 {[%emt 0:00:30]} 0-1

[Event "IM Marmaris Karia VIII 2019"]
[Site "Marmaris"]
[Date "2019.07.28"]
[Round "5.3"]
[White "Karaoglan, Doruk"]
[Black "Benidze, Davit"]
[Result "0-1"]
[ECO "B15"]
[WhiteElo "2278"]
[BlackElo "2469"]
[Annotator "ChessBase"]
[PlyCount "104"]
[EventDate "2019.07.29"]
[EventType "schev"]
[EventCountry "TUR"]
[SourceTitle "playchess.com"]
[Source "ChessBase"]
[SourceQuality "1"]
[TimeControl "5400+30"]

1. e4 {[%emt 0:00:30]} g6 {[%emt 0:00:30]} 2. d4 {[%emt 0:00:00]} Bg7 {[%emt 0:00:00]} 3. Nc3 {[%emt 0:00:00]} c6 {[%emt 0:00:00]} 4. Nf3 {[%emt 0:00:00]} d5 {[%emt 0:00:00]} 5. h3 {[%emt 0:00:00]} Nh6 {[%emt 0:01:00]} 6. Bd3 {[%emt 0:00:30]} O-O {[%emt 0:01:30]} 7. O-O {[%emt 0:01:30]} f6 {[%emt 0:00:30]} 8. exd5 {[%emt 0:01:30]} cxd5 {[%emt 0:00:00]} 9. Ne2 {[%emt 0:00:30]} Nc6 {[%emt 0:00:00]} 10. c4 {[%emt 0:01:30]} Nb4 {[%emt 0:01:30]} 11. cxd5 {[%emt 0:01:30]} Nxd3 {[%emt 0:00:30]} 12. Qxd3 {[%emt 0:00:30]} Qxd5 {[%emt 0:00:00]} 13. Nc3 {[%emt 0:00:30]} Qf7 {[%emt 0:00:00]} 14. Bf4 {[%emt 0:06:30]} Rd8 {[%emt 0:00:30]} 15. Qb5 {[%emt 0:08:30]} Nf5 {[%emt 0:06:30]} 16. Rad1 {[%emt 0:05:30]} h5 {[%emt 0:01:30]} 17. Bc7 {[%emt 0:19:30]} Rd7 {[%emt 0:11:30]} 18. Bh2 {[%emt 0:01:30]} Nd6 {[%emt 0:02:30]} 19. Qb3 {[%emt 0:08:30]} Qxb3 {[%emt 0:04:30]} 20. axb3 {[%emt 0:00:00]} b6 {[%emt 0:01:30]} 21. Rfe1 {[%emt 0:06:00]} Nf5 {[%emt 0:05:30]} 22. d5 {[%emt 0:20:52]} Bb7 {[%emt 0:01:30]} 23. Re2 {[%emt 0:01:28]} Rad8 {[%emt 0:00:00]} 24. Red2 {[%emt 0:01:13]} Kf7 {[%emt 0:05:00]} 25. b4 {[%emt 0:03:20]} a6 {[%emt 0:05:30]} 26. Ne1 {[%emt 0:03:03]} Nd6 {[%emt 0:00:30]} 27. Bxd6 {[%emt 0:00:00]} Rxd6 {[%emt 0:00:30]} 28. Nc2 {[%emt 0:00:59]} f5 {[%emt 0:00:30]} 29. Ne3 {[%emt 0:00:36]} b5 {[%emt 0:01:30]} 30. Ne2 {[%emt 0:02:16]} Bh6 {[%emt 0:00:00]} 31. f4 {[%emt 0:01:49]} h4 {[%emt 0:00:00]} 32. Kf2 {[%emt 0:00:48]} Kf6 {[%emt 0:00:00]} 33. Rd4 {[%emt 0:04:16]} e6 {[%emt 0:00:00]} 34. Ng1 {[%emt 0:00:42]} exd5 {[%emt 0:00:30]} 35. Nf3 {[%emt 0:00:41]} Bg7 {[%emt 0:00:30]} 36. Nxh4 {[%emt 0:00:10]} Kf7 {[%emt 0:00:30]} 37. R4d2 {[%emt 0:00:30]} d4 {[%emt 0:01:30]} 38. Nf1 {[%emt 0:00:30]} d3 {[%emt 0:00:30]} 39. Nf3 {[%emt 0:00:30]} Bxf3 {[%emt 0:00:00]} 40. Kxf3 {[%emt 0:00:13]} Rd4 {[%emt 0:00:00]} 41. Ke3 {[%emt 0:00:06]} Rxb4 {[%emt 0:00:30]} 42. Rxd3 {[%emt 0:00:30]} Rxd3+ {[%emt 0:00:30]} 43. Rxd3 {[%emt 0:00:02]} Rxb2 {[%emt 0:00:00]} 44. Rd7+ {[%emt 0:00:45]} Kf8 {[%emt 0:00:00]} 45. g4 {[%emt 0:00:45]} fxg4 {[%emt 0:00:30]} 46. hxg4 {[%emt 0:00:39]} a5 {[%emt 0:00:30]} 47. f5 {[%emt 0:00:02]} gxf5 {[%emt 0:01:30]} 48. gxf5 {[%emt 0:00:30]} a4 {[%emt 0:00:30]} 49. Ra7 {[%emt 0:00:32]} Rb4 {[%emt 0:00:00]} 50. Kf3 {[%emt 0:01:52]} Bb2 {[%emt 0:02:00]} 51. Ng3 {[%emt 0:00:06]} a3 {[%emt 0:00:30]} 52. Ne4 {[%emt 0:00:21]} Ra4 0-1

[Event "IM Marmaris Karia VIII 2019"]
[Site "Marmaris"]
[Date "2019.07.28"]
[Round "5.4"]
[White "Yazici, Ugur Doga"]
[Black "Sibashvili, Giorgi"]
[Result "0-1"]
[ECO "C01"]
[WhiteElo "2143"]
[BlackElo "2389"]
[Annotator "NA"]
[PlyCount "60"]
[EventDate "2019.07.29"]
[EventType "schev"]
[EventCountry "TUR"]
[SourceTitle "playchess.com"]
[Source "ChessBase"]
[SourceQuality "1"]
[TimeControl "5400+30"]

1. e4 {[%emt 0:00:30]} e6 {[%emt 0:09:30]} 2. d4 {[%emt 0:00:00]} d5 {[%emt 0:00:00]} 3. Nc3 {[%emt 0:00:00]} Bb4 {[%emt 0:00:00]} 4. exd5 {[%emt 0:00:30]} exd5 {[%emt 0:00:30]} 5. Bd3 {[%emt 0:00:00]} Nc6 {[%emt 0:06:30]} 6. a3 {[%emt 0:00:00]} Bxc3+ {[%emt 0:01:30]} 7. bxc3 {[%emt 0:00:30]} Nge7 {[%emt 0:00:00]} 8. Qf3 {[%emt 0:00:30]} Be6 {[%emt 0:00:00]} 9. Rb1 {[%emt 0:00:30]} Na5 {[%emt 0:00:30]} 10. Ne2 {[%emt 0:00:30]} Qd7 {[%emt 0:04:30]} 11. Nf4 {[%emt 0:01:30]} Bg4 {[%emt 0:11:30]} 12. Qg3 {[%emt 0:03:30]} g6 {[%emt 0:08:30]} 13. Ne2 {[%emt 0:10:30]} O-O-O {[%emt 0:04:30]} 14. Bg5 {[%emt 0:01:30]} Rde8 {[%emt 0:04:30]} 15. f3 {[%emt 0:00:30]} Bf5 {[%emt 0:00:30]} 16. O-O {[%emt 0:15:30]} Nc4 {[%emt 0:04:30]} 17. Qf2 {[%emt 0:02:30]} h6 {[%emt 0:09:30]} 18. Bc1 {[%emt 0:01:30]} g5 {[%emt 0:02:30]} 19. Ng3 {[%emt 0:00:30]} Bg6 {[%emt 0:00:30]} 20. Bxc4 {[%emt 0:01:30]} dxc4 {[%emt 0:00:00]} 21. Ne4 {[%emt 0:00:30]} Qc6 {[%emt 0:01:00]} 22. d5 {[%emt 0:03:30]} Nxd5 {[%emt 0:02:30]} 23. Qxa7 {[%emt 0:00:30]} b6 {[%emt 0:00:30]} 24. Qa6+ {[%emt 0:00:30]} Kb8 {[%emt 0:00:30]} 25. a4 {[%emt 0:00:30]} Bxe4 {[%emt 0:00:30]} 26. fxe4 {[%emt 0:00:30]} Nxc3 {[%emt 0:00:30]} 27. Be3 {[%emt 0:00:30]} Nxb1 {[%emt 0:00:30]} 28. Rxb1 {[%emt 0:00:30]} Qb7 {[%emt 0:00:30]} 29. Qxc4 {[%emt 0:00:30]} Qxe4 {[%emt 0:00:30]} 30. Bd4 {[%emt 0:00:30]} Rd8 {[%emt 0:00:30]} 0-1

[Event "IM Marmaris Karia VIII 2019"]
[Site "Marmaris"]
[Date "2019.07.28"]
[Round "5.5"]
[White "Caputcuoglu, Zeki Berke"]
[Black "Odeev, Handszar"]
[Result "1/2-1/2"]
[ECO "A33"]
[WhiteElo "2010"]
[BlackElo "2360"]
[Annotator "NA"]
[PlyCount "39"]
[EventDate "2019.07.29"]
[EventType "schev"]
[EventCountry "TUR"]
[SourceTitle "playchess.com"]
[Source "ChessBase"]
[SourceQuality "1"]
[TimeControl "5400+30"]

1. Nf3 {[%emt 0:00:30]} c5 {[%emt 0:05:30]} 2. c4 {[%emt 0:00:30]} Nc6 {[%emt 0:00:30]} 3. d4 {[%emt 0:00:00]} cxd4 {[%emt 0:00:30]} 4. Nxd4 {[%emt 0:00:00]} Qb6 {[%emt 0:10:30]} 5. Nc2 {[%emt 0:02:30]} Nf6 {[%emt 0:12:30]} 6. Nc3 {[%emt 0:04:30]} e6 {[%emt 0:00:30]} 7. g3 {[%emt 0:01:30]} Ne5 {[%emt 0:01:30]} 8. b3 {[%emt 0:08:30]} Qc6 {[%emt 0:00:30]} 9. f3 {[%emt 0:03:30]} Bc5 {[%emt 0:18:30]} 10. Be3 {[%emt 0:08:30]} d5 {[%emt 0:14:30]} 11. cxd5 {[%emt 0:06:30]} exd5 {[%emt 0:00:30]} 12. Bxc5 {[%emt 0:02:30]} Qxc5 {[%emt 0:00:30]} 13. Qd4 {[%emt 0:00:30]} Qe7 {[%emt 0:00:30]} 14. Bg2 {[%emt 0:00:30]} Bh3 {[%emt 0:08:30]} 15. O-O {[%emt 0:01:30]} Bxg2 {[%emt 0:00:30]} 16. Kxg2 {[%emt 0:00:30]} Nc6 {[%emt 0:02:44]} 17. Qd2 {[%emt 0:01:30]} O-O {[%emt 0:00:47]} 18. Rad1 {[%emt 0:05:30]} Rfe8 {[%emt 0:01:00]} 19. Rfe1 {[%emt 0:00:30]} Rac8 {[%emt 0:03:02]} 20. e3 {[%emt 0:05:30]} 1/2-1/2

[Event "IM Marmaris Karia VIII 2019"]
[Site "Marmaris"]
[Date "2019.07.28"]
[Round "6.3"]
[White "Sibashvili, Giorgi"]
[Black "Karaoglan, Doruk"]
[Result "1-0"]
[ECO "A69"]
[WhiteElo "2389"]
[BlackElo "2278"]
[Annotator "NA"]
[PlyCount "51"]
[EventDate "2019.07.29"]
[EventType "schev"]
[EventCountry "TUR"]
[SourceTitle "playchess.com"]
[Source "ChessBase"]
[SourceQuality "1"]
[TimeControl "5400+30"]

1. d4 {[%emt 0:07:30]} Nf6 {[%emt 0:00:30]} 2. c4 {[%emt 0:01:30]} g6 {[%emt 0:00:00]} 3. Nc3 {[%emt 0:02:30]} Bg7 {[%emt 0:00:00]} 4. e4 {[%emt 0:00:00]} d6 {[%emt 0:00:00]} 5. f4 {[%emt 0:00:00]} c5 {[%emt 0:02:00]} 6. d5 {[%emt 0:00:30]} e6 {[%emt 0:01:30]} 7. Nf3 {[%emt 0:00:30]} exd5 {[%emt 0:00:30]} 8. cxd5 {[%emt 0:00:30]} O-O {[%emt 0:02:30]} 9. Be2 {[%emt 0:04:30]} Re8 {[%emt 0:07:30]} 10. e5 {[%emt 0:01:30]} dxe5 {[%emt 0:08:30]} 11. fxe5 {[%emt 0:00:30]} Ng4 {[%emt 0:03:30]} 12. e6 {[%emt 0:00:00]} Ne5 {[%emt 0:13:30]} 13. Nxe5 {[%emt 0:13:00]} Bxe5 {[%emt 0:00:30]} 14. exf7+ {[%emt 0:00:30]} Kxf7 {[%emt 0:00:30]} 15. O-O+ {[%emt 0:00:30]} Kg7 {[%emt 0:08:30]} 16. Bf4 {[%emt 0:04:30]} Bd4+ {[%emt 0:06:30]} 17. Kh1 {[%emt 0:00:30]} a6 {[%emt 0:00:30]} 18. Qd2 {[%emt 0:02:30]} Nd7 {[%emt 0:17:30]} 19. Bh6+ {[%emt 0:14:30]} Kg8 {[%emt 0:08:32]} 20. Bg5 {[%emt 0:17:30]} Qb6 {[%emt 0:13:07]} 21. d6 {[%emt 0:01:30]} Qxd6 {[%emt 0:01:12]} 22. Bc4+ {[%emt 0:00:30]} Kh8 {[%emt 0:00:30]} 23. Bf7 {[%emt 0:00:30]} Rf8 {[%emt 0:00:30]} 24. Rae1 {[%emt 0:00:30]} Rxf7 {[%emt 0:00:30]} 25. Rxf7 {[%emt 0:00:30]} Ne5 {[%emt 0:03:30]} 26. Bf6+ {[%emt 0:00:30]} 1-0

[Event "IM Marmaris Karia VIII 2019"]
[Site "Marmaris"]
[Date "2019.07.29"]
[Round "7.1"]
[White "Dedebas, Emre Emin"]
[Black "Benidze, Davit"]
[Result "1/2-1/2"]
[ECO "D00"]
[WhiteElo "2301"]
[BlackElo "2469"]
[Annotator "ChessBase"]
[PlyCount "60"]
[EventDate "2019.07.29"]
[EventType "schev"]
[EventCountry "TUR"]
[SourceTitle "playchess.com"]
[Source "ChessBase"]
[SourceQuality "1"]
[TimeControl "5400+30"]

1. d4 {[%emt 0:00:30]} Nf6 {[%emt 0:00:30]} 2. Nf3 {[%emt 0:00:00]} g6 {[%emt 0:00:30]} 3. Nc3 {[%emt 0:00:00]} d5 {[%emt 0:01:30]} 4. Bf4 {[%emt 0:00:30]} Bg7 {[%emt 0:00:00]} 5. e3 {[%emt 0:00:00]} O-O {[%emt 0:01:00]} 6. Be2 {[%emt 0:02:00]} Bg4 {[%emt 0:06:30]} 7. h3 {[%emt 0:00:30]} Bxf3 {[%emt 0:00:30]} 8. Bxf3 {[%emt 0:00:30]} c6 {[%emt 0:00:30]} 9. O-O {[%emt 0:00:30]} Nbd7 {[%emt 0:00:30]} 10. e4 {[%emt 0:00:30]} dxe4 {[%emt 0:00:30]} 11. Nxe4 {[%emt 0:00:30]} Nxe4 {[%emt 0:00:30]} 12. Bxe4 {[%emt 0:00:30]} e5 {[%emt 0:00:30]} 13. dxe5 {[%emt 0:00:30]} Nxe5 {[%emt 0:00:30]} 14. c3 {[%emt 0:00:00]} Qxd1 {[%emt 0:00:00]} 15. Raxd1 {[%emt 0:00:00]} Rad8 {[%emt 0:00:00]} 16. Bc2 {[%emt 0:00:00]} Bf6 {[%emt 0:00:00]} 17. Bxe5 {[%emt 0:00:00]} Bxe5 {[%emt 0:00:00]} 18. Rxd8 {[%emt 0:00:00]} Rxd8 {[%emt 0:00:00]} 19. Rd1 {[%emt 0:00:00]} Rxd1+ {[%emt 0:00:00]} 20. Bxd1 {[%emt 0:00:00]} Kf8 {[%emt 0:00:00]} 21. Kf1 {[%emt 0:00:00]} Ke7 {[%emt 0:00:00]} 22. Ke2 {[%emt 0:00:00]} Bc7 {[%emt 0:00:00]} 23. Kd3 {[%emt 0:00:00]} Bb6 {[%emt 0:00:00]} 24. f3 {[%emt 0:00:30]} Bc7 {[%emt 0:00:00]} 25. a4 {[%emt 0:00:00]} a5 {[%emt 0:00:00]} 26. Bb3 {[%emt 0:00:00]} f5 {[%emt 0:00:00]} 27. Bc4 {[%emt 0:00:00]} h6 {[%emt 0:00:00]} 28. b4 {[%emt 0:00:00]} Kf6 {[%emt 0:00:00]} 29. b5 {[%emt 0:00:30]} cxb5 {[%emt 0:00:00]} 30. Bxb5 {[%emt 0:00:00]} Bd6 {[%emt 0:00:00]} 1/2-1/2